fUSD/lending_fUSD_20250112
["ID","MTS","AMOUNT","RATE_DAILY","PERIOD"]
[348643791,1736697057990,-500.0,0.0001041,2]
[348643792,1736697057999,-500.0,0.0001041,2]
[348643793,1736697058009,-500.0,0.0001041,2]
[348643794,1736697058019,-500.0,0.0001041,2]
[348643795,1736697058029,-500.0,0.0001041,2]
[348643796,1736697058039,-708.77,0.0001041,2]
[348643797,1736697058049,-622.73,0.0001041,2]
[348643798,1736697058060,-500.0,0.0001041,2]
[348643799,1736697058070,-677.81,0.0001041,2]
[348643800,1736697058079,-500.0,0.0001041,2]
[348643801,1736697058089,-600.78,0.0001041,2]
[348643802,1736697058098,-500.0,0.0001041,2]
[348643803,1736697058107,-500.0,0.0001041,2]
[348643804,1736697058117,-500.0,0.0001041,2]
[348643805,1736697058127,-500.0,0.0001041,2]
[348643806,1736697058137,-500.0,0.0001041,2]
[348643807,1736697058148,-500.0,0.0001041,2]
[348643808,1736697058157,-274.79852507,0.0001041,2]
[348643809,1736697058167,-508.11,0.0001041,2]
[348643810,1736697058178,-500.0,0.0001041,2]
[348643811,1736697058189,-500.0,0.0001041,2]
[348643812,1736697058198,-500.0,0.0001041,2]
[348643813,1736697058207,-500.0,0.0001041,2]
[348643814,1736697058217,-500.0,0.0001041,2]
[348643815,1736697058226,-500.0,0.0001041,2]
[348643816,1736697058235,-500.0,0.0001041,2]
[348643817,1736697058244,-605.63,0.0001041,2]
[348643818,1736697058254,-500.0,0.0001041,2]
[348643819,1736697058263,-500.0,0.0001041,2]
[348643820,1736697058273,-611.43,0.0001041,2]
[348643821,1736697058282,-500.0,0.0001041,2]
[348643822,1736697058291,-573.28,0.0001041,2]
[348643823,1736697058301,-500.0,0.0001041,2]
[348643824,1736697058310,-500.0,0.0001041,2]
[348643825,1736697058322,-807.75,0.0001041,2]
[348643826,1736697058332,-500.0,0.0001041,2]
[348643827,1736697058343,-179.0482255,0.0001041,2]
[348643828,1736697058352,-500.0,0.0001041,2]
[348643829,1736697058362,-500.0,0.0001041,2]
[348643830,1736697058371,-500.0,0.0001041,2]
[348643831,1736697058381,-500.0,0.0001041,2]
[348643832,1736697058391,-885.24,0.0001041,2]
[348643833,1736697058400,-677.43,0.0001041,2]
[348643834,1736697058410,-500.0,0.0001041,2]
[348643835,1736697058420,-246.18119282,0.0001041,2]
[348643836,1736697058429,-538.14,0.0001041,2]
[348643837,1736697058439,-683.1,0.0001041,2]
[348643838,1736697058449,-582.99,0.0001041,2]
[348643839,1736697058458,-500.0,0.0001041,2]
[348643840,1736697058467,-500.0,0.0001041,2]
[348643841,1736697058476,-500.0,0.0001041,2]
[348643842,1736697058486,-500.0,0.0001041,2]
[348643843,1736697058495,-732.47,0.0001041,2]
[348643844,1736697058504,-659.43,0.0001041,2]
[348643845,1736697058513,-500.0,0.0001041,2]
[348643846,1736697058523,-500.0,0.0001041,2]
[348643847,1736697058532,-500.0,0.0001041,2]
[348643848,1736697058542,-500.0,0.0001041,2]
[348643849,1736697058551,-677.35,0.0001041,2]
[348643850,1736697058561,-500.0,0.0001041,2]
[348643851,1736697058574,-500.0,0.0001041,2]
[348643852,1736697058583,-550.29,0.0001041,2]
[348643853,1736697058592,-500.0,0.0001041,2]
[348643854,1736697058602,-500.0,0.0001041,2]
[348643855,1736697058612,-508.0,0.0001041,2]
[348643856,1736697058622,-500.0,0.0001041,2]
[348643857,1736697058632,-541.90345645,0.0001041,2]
[348643858,1736697058641,-500.0,0.0001041,2]
[348643859,1736697058651,-579.59373616,0.0001041,2]
[348643860,1736697058660,-633.26,0.0001041,2]
[348643861,1736697058670,-500.0,0.0001041,2]
[348643862,1736697058679,-500.0,0.0001041,2]
[348643863,1736697058689,-500.0,0.0001041,2]
[348643864,1736697058699,-500.0,0.0001041,2]
[348643865,1736697058708,-615.11,0.0001041,2]
[348643866,1736697058717,-500.0,0.0001041,2]
[348643867,1736697058726,-626.46,0.0001041,2]
[348643868,1736697058736,-500.0,0.0001041,2]
[348643869,1736697058745,-500.0,0.0001041,2]
[348643870,1736697058755,-500.0,0.0001041,2]
[348643871,1736697058765,-500.0,0.0001041,2]
[348643872,1736697058774,-641.64,0.0001041,2]
[348643873,1736697058784,-750.91,0.0001041,2]
[348643874,1736697058794,-500.0,0.0001041,2]
[348643875,1736697058804,-887.79,0.0001041,2]
[348643876,1736697058813,-500.0,0.0001041,2]
[348643877,1736697058825,-535.26623081,0.0001041,2]
[348643878,1736697058835,-500.0,0.0001041,2]
[348643879,1736697058844,-500.0,0.0001041,2]
[348643880,1736697058854,-500.0,0.0001041,2]
[348643881,1736697058866,-500.0,0.0001041,2]
[348643882,1736697058876,-165.47077202,0.0001041,2]
[348643883,1736697058886,-500.0,0.0001041,2]
[348643884,1736697058895,-500.0,0.0001041,2]
[348643885,1736697058905,-500.0,0.0001041,2]
[348643886,1736697058915,-500.0,0.0001041,2]
[348643887,1736697058925,-500.0,0.0001041,2]
[348643888,1736697058935,-500.0,0.0001041,2]
[348643889,1736697058945,-500.0,0.0001041,2]
[348643890,1736697058955,-566.54,0.0001041,2]
[348643891,1736697058965,-500.0,0.0001041,2]
[348643892,1736697058975,-500.0,0.0001041,2]
[348643893,1736697058985,-500.0,0.0001041,2]
[348643894,1736697058995,-1010.06,0.0001041,2]
[348643895,1736697059004,-500.0,0.0001041,2]
[348643896,1736697059014,-873.67,0.0001041,2]
[348643897,1736697059023,-500.0,0.0001041,2]
[348643898,1736697059034,-1283.08,0.0001041,2]
[348643899,1736697059044,-402.42553196,0.0001041,2]
[348643900,1736697059053,-989.43,0.0001041,2]
[348643901,1736697059063,-500.0,0.0001041,2]
[348643902,1736697059074,-500.0,0.0001041,2]
[348643903,1736697059084,-500.0,0.0001041,2]
[348643904,1736697059094,-500.0,0.0001041,2]
[348643905,1736697059104,-655.72,0.0001041,2]
[348643906,1736697059114,-500.0,0.0001041,2]
[348643907,1736697059124,-500.0,0.0001041,2]
[348643908,1736697059134,-500.0,0.0001041,2]
[348643909,1736697059145,-500.0,0.0001041,2]
[348643910,1736697059154,-513.72527152,0.0001041,2]
[348643911,1736697059164,-628.62,0.0001041,2]
[348643912,1736697059174,-484.86040052,0.0001041,2]
[348643913,1736697059185,-500.0,0.0001041,2]
[348643914,1736697059194,-500.0,0.0001041,2]
[348643915,1736697059204,-500.0,0.0001041,2]
[348643916,1736697059214,-541.0,0.0001041,2]
[348643917,1736697059224,-500.0,0.0001041,2]
[348643918,1736697059234,-512.24318407,0.0001041,2]
[348643919,1736697059244,-500.0,0.0001041,2]
[348643920,1736697059254,-768.84,0.0001041,2]
[348643921,1736697059263,-500.0,0.0001041,2]
[348643922,1736697059274,-581.22,0.0001041,2]
[348643923,1736697059283,-500.0,0.0001041,2]
[348643924,1736697059293,-500.0,0.0001041,2]
[348643925,1736697059302,-510.04,0.0001041,2]
[348643926,1736697059312,-500.0,0.0001041,2]
[348643927,1736697059324,-897.21,0.0001041,2]
[348643928,1736697059334,-500.0,0.0001041,2]
[348643929,1736697059343,-553.28,0.0001041,2]
[348643930,1736697059353,-500.0,0.0001041,2]
[348643931,1736697059362,-500.0,0.0001041,2]
[348643932,1736697059372,-1000.0,0.00010411,2]
[348643933,1736697059382,-1000.0,0.00010411,2]
[348643934,1736697059391,-1000.0,0.00010411,2]
[348643935,1736697059401,-1000.0,0.00010411,2]
[348643936,1736697059410,-1000.0,0.00010411,2]
[348643937,1736697059420,-1000.0,0.00010411,2]
[348643938,1736697059429,-1000.0,0.00010411,2]
[348643939,1736697059439,-1000.0,0.00010411,2]
[348643940,1736697059449,-982.0,0.00010411,2]
[348643941,1736697059458,-3286.55,0.00010411,2]
[348643942,1736697059468,-661.81,0.00010411,2]
[348643943,1736697059604,-541.11,0.00010411,2]
[348643944,1736697059614,-826.26,0.00010411,2]
[348643945,1736697059624,-500.0,0.00010411,2]
[348643946,1736697059636,-3187.41,0.00010411,2]
[348643947,1736697059645,-758.23,0.00010411,2]
[348643948,1736697059654,-500.0,0.00010411,2]
[348643949,1736697059664,-642.94,0.00010411,2]
[348643950,1736697059674,-562.05,0.00010411,2]
[348643951,1736697059683,-849.12,0.00010411,2]
[348643952,1736697059694,-500.0,0.00010411,2]
[348643953,1736697059704,-1543.68,0.00010411,2]
[348643954,1736697059714,-500.0,0.00010411,2]
[348643955,1736697059725,-564.14,0.00010411,2]
[348643956,1736697059735,-500.0,0.00010411,2]
[348643957,1736697059745,-1103.08,0.00010411,2]
[348643958,1736697059755,-3717.27,0.00010411,2]
[348643959,1736697059764,-700.7,0.00010411,2]
[348643960,1736697059774,-1059.0,0.00010411,2]
[348643961,1736697059783,-500.0,0.00010411,2]
[348643962,1736697059793,-1152.57,0.00010411,2]
[348643963,1736697059802,-500.0,0.00010411,2]
[348643964,1736697059812,-724.12,0.00010411,2]
[348643965,1736697059823,-641.03,0.00010411,2]
[348643966,1736697059833,-861.44,0.00010411,2]
[348643967,1736697059842,-544.37834561,0.00010411,2]
[348643968,1736697059852,-500.0,0.00010411,2]
[348643969,1736697059864,-500.0,0.00010411,2]
[348643970,1736697059874,-500.0,0.00010411,2]
[348643971,1736697059883,-1488.76,0.00010411,2]
[348643972,1736697059893,-1175.02,0.00010411,2]
[348643973,1736697059903,-1597.05,0.00010411,2]
[348643974,1736697059912,-1574.14,0.00010411,2]
[348643975,1736697059923,-2211.26,0.00010411,2]
[348643976,1736697059933,-2119.12,0.00010411,2]
[348643977,1736697059943,-1594.15,0.00010411,2]
[348643978,1736697059954,-2130.38,0.00010411,2]
[348643979,1736697059964,-500.0,0.00010411,2]
[348643980,1736697059973,-1172.47,0.00010411,2]
[348643981,1736697059983,-2794.07,0.00010411,2]
[348643982,1736697059994,-1539.11,0.00010411,2]
[348643983,1736697060004,-1212.36,0.00010411,2]
[348643984,1736697060014,-4615.15,0.00010411,2]
[348643985,1736697060025,-989.21,0.00010411,2]
[348643986,1736697060035,-988.3,0.00010411,2]
[348643987,1736697060044,-1841.75,0.00010411,2]
[348643988,1736697060054,-864.44,0.00010419,2]
[348643989,1736697060065,-2707.36070245,0.00010452,2]
[348643990,1736697060076,-6568.27876642,0.000105,2]
[348643991,1736697060086,-903.08,0.00010511,2]
[348643992,1736697060095,-328.53,0.00010511,2]
[348643993,1736697060105,-545.33607628,0.00010511,2]
[348643994,1736697060114,-669.21,0.00010511,2]
[348643995,1736697060124,-688.56,0.00010511,2]
[348643996,1736697060134,-500.0,0.00010511,2]
[348643997,1736697060143,-885.95,0.00010511,2]
[348643998,1736697060153,-611.64,0.00010511,2]
[348643999,1736697060162,-814.39,0.00010511,2]
[348644000,1736697060172,-548.55,0.00010511,2]
[348644001,1736697060182,-500.0,0.00010511,2]
[348644002,1736697060191,-500.0,0.00010511,2]
[348644003,1736697060201,-500.0,0.00010511,2]
[348644004,1736697060211,-764.62,0.00010511,2]
[348644005,1736697060220,-261.58407727,0.00010511,2]
[348644006,1736697060231,-652.34,0.00010511,2]
[348644007,1736697060241,-500.0,0.00010511,2]
[348644008,1736697060251,-500.0,0.00010511,2]
[348644009,1736697060262,-500.0,0.00010511,2]
[348644010,1736697060272,-500.0,0.00010511,2]
[348644011,1736697060282,-830.72,0.00010511,2]
[348644012,1736697060291,-756.13,0.00010511,2]
[348644013,1736697060301,-526.8,0.00010511,2]
[348644014,1736697060311,-513.62,0.00010511,2]
[348644015,1736697060322,-500.0,0.00010511,2]
[348644016,1736697060332,-750.84,0.00010511,2]
[348644017,1736697060342,-500.0,0.00010511,2]
[348644018,1736697060351,-500.0,0.00010511,2]
[348644019,1736697060361,-970.91,0.00010511,2]
[348644020,1736697060370,-500.0,0.00010511,2]
[348644021,1736697060380,-669.43,0.00010511,2]
[348644022,1736697060390,-302.82510393,0.00010511,2]
[348644023,1736697060400,-859.87,0.00010511,2]
[348644024,1736697060409,-500.0,0.00010511,2]
[348644025,1736697060419,-500.0,0.00010511,2]
[348644026,1736697060429,-971.19,0.00010511,2]
[348644027,1736697060438,-500.0,0.00010511,2]
[348644028,1736697060448,-542.43,0.00010511,2]
[348644029,1736697060458,-500.0,0.00010511,2]
[348644030,1736697060467,-675.05,0.00010511,2]
[348644031,1736697060477,-500.0,0.00010511,2]
[348644032,1736697060487,-500.0,0.00010511,2]
[348644033,1736697060497,-865.52,0.00010511,2]
[348644034,1736697060507,-1015.09,0.00010511,2]
[348644035,1736697060516,-671.39,0.00010511,2]
[348644036,1736697060525,-500.0,0.00010511,2]
[348644037,1736697060535,-956.97,0.00010511,2]
[348644038,1736697060544,-500.0,0.00010511,2]
[348644039,1736697060554,-500.0,0.00010511,2]
[348644040,1736697060564,-879.51,0.00010511,2]
[348644041,1736697060575,-811.4,0.00010511,2]
[348644042,1736697060584,-500.0,0.00010511,2]
[348644043,1736697060594,-616.16,0.00010511,2]
[348644044,1736697060605,-909.19,0.00010511,2]
[348644045,1736697060614,-909.34,0.00010511,2]
[348644046,1736697060624,-602.81,0.00010511,2]
[348644047,1736697060634,-719.32,0.00010511,2]
[348644048,1736697060644,-1857.19,0.00010511,2]
[348644049,1736697060653,-500.0,0.00010511,2]
[348644050,1736697060664,-718.02,0.00010511,2]
[348644051,1736697060675,-531.49,0.00010511,2]
[348644052,1736697060685,-840.11,0.00010511,2]
[348644053,1736697060696,-500.0,0.00010511,2]
[348644054,1736697060705,-995.57,0.00010511,2]
[348644055,1736697060715,-616.45,0.00010511,2]
[348644056,1736697060726,-500.0,0.00010511,2]
[348644057,1736697060735,-500.0,0.00010511,2]
[348644058,1736697060747,-941.17,0.00010511,2]
[348644059,1736697060756,-4755.32,0.00010511,2]
[348644060,1736697060765,-1038.78,0.00010511,2]
[348644061,1736697060775,-681.9,0.00010511,2]
[348644062,1736697060785,-1057.81,0.00010511,2]
[348644063,1736697060795,-1304.82,0.00010511,2]
[348644064,1736697060805,-876.54,0.00010511,2]
[348644065,1736697060814,-530.36,0.00010511,2]
[348644066,1736697060825,-926.71,0.00010511,2]
[348644067,1736697060834,-500.0,0.00010511,2]
[348644068,1736697060843,-3630.65,0.00010511,2]
[348644069,1736697060853,-928.78,0.00010511,2]
[348644070,1736697060864,-511.33,0.00010511,2]
[348644071,1736697060875,-607.56,0.00010511,2]
[348644072,1736697060885,-500.0,0.00010511,2]
[348644073,1736697060895,-652.54,0.00010511,2]
[348644074,1736697060907,-876.52,0.00010511,2]
[348644075,1736697060916,-933.85,0.00010511,2]
[348644076,1736697060926,-500.0,0.00010511,2]
[348644077,1736697060936,-835.24,0.00010511,2]
[348644078,1736697060946,-500.0,0.00010511,2]
[348644079,1736697060955,-872.6,0.00010511,2]
[348644080,1736697060965,-1557.36,0.00010512,2]
[348644081,1736697060976,-2525.02,0.00010512,2]
[348644082,1736697060986,-1114.65,0.00010513,2]
[348644083,1736697060997,-710.95,0.00010513,2]
[348644084,1736697061006,-826.55,0.00010513,2]
[348644085,1736697061016,-2055.37,0.00010513,2]
[348644086,1736697061026,-500.0,0.00010513,2]
[348644087,1736697061037,-929.05,0.00010513,2]
[348644088,1736697061046,-1280.25,0.00010513,2]
[348644089,1736697061056,-1692.05,0.00010513,2]
[348644090,1736697061068,-511.69,0.00010513,2]
[348644091,1736697061077,-500.0,0.00010513,2]
[348644092,1736697061087,-500.88165732,0.00010521,2]
[348644093,1736697061096,-1000.0,0.00010521,2]
[348644094,1736697061106,-500.0,0.00010521,2]
[348644095,1736697061116,-500.0,0.00010521,2]
[348644096,1736697061127,-500.0,0.00010521,2]
[348644097,1736697061140,-2304.99,0.00010522,2]
[348644098,1736697061152,-2029.77,0.00010522,2]
[348644099,1736697061164,-2707.36070245,0.00010524,2]
[348644100,1736697061174,-956.09,0.0001053,2]
[348644101,1736697061183,-500.0,0.0001053,2]
[348644102,1736697061194,-500.0,0.00010547,2]
[348644103,1736697061203,-500.0,0.00010547,2]
[348644104,1736697061214,-3599.07,0.00010547,2]
[348644105,1736697061224,-204.71181089,0.00010547,2]
[348644106,1736697061233,-1288.35,0.00010547,2]
[348644107,1736697061243,-750.48,0.00010547,2]
[348644108,1736697061252,-500.0,0.00010547,2]
[348644109,1736697061262,-1532.98,0.00010547,2]
[348644110,1736697061272,-500.0,0.00010547,2]
[348644111,1736697061281,-500.0,0.00010547,2]
[348644112,1736697061293,-1003.85,0.00010547,2]
[348644113,1736697061302,-752.39,0.00010547,2]
[348644114,1736697061317,-686.26,0.00010547,2]
[348644115,1736697061326,-1517.54,0.00010547,2]
[348644116,1736697061336,-1041.09,0.00010547,2]
[348644117,1736697061345,-1690.55,0.00010547,2]
[348644118,1736697061355,-656.28,0.00010547,2]
[348644119,1736697061364,-1441.36,0.00010547,2]
[348644120,1736697061375,-957.88,0.00010547,2]
[348644121,1736697061384,-3318.45,0.00010547,2]
[348644122,1736697061394,-1586.76,0.00010547,2]
[348644123,1736697061403,-1501.28,0.00010547,2]
[348644124,1736697061412,-398.11677717,0.00010574,2]
[348644125,1736697061422,-2707.36070245,0.00010597,2]
[348644126,1736697061431,-1000.0,0.00010599,2]
[348644127,1736697061441,-1025.85,0.00010621,2]
[348644128,1736697061452,-1000.86,0.00010621,2]
[348644129,1736697061462,-1731.84,0.00010621,2]
[348644130,1736697061472,-500.0,0.00010621,2]
[348644131,1736697061482,-500.0,0.00010621,2]
[348644132,1736697061492,-500.0,0.00010621,2]
[348644133,1736697061502,-500.0,0.00010621,2]
[348644134,1736697061512,-503.58333237,0.00010621,2]
[348644135,1736697061522,-500.0,0.00010621,2]
[348644136,1736697061531,-474.63972652,0.00010621,2]
[348644137,1736697061541,-618.29,0.00010621,2]
[348644138,1736697061550,-500.0,0.00010621,2]
[348644139,1736697061560,-500.0,0.00010621,2]
[348644140,1736697061570,-1117.87,0.00010621,2]
[348644141,1736697061580,-2072.93,0.00010621,2]
[348644142,1736697061589,-500.0,0.00010621,2]
[348644143,1736697061599,-1147.23,0.00010621,2]
[348644144,1736697061608,-967.28,0.00010621,2]
[348644145,1736697061618,-3016.7,0.00010621,2]
[348644146,1736697061629,-500.0,0.00010621,2]
[348644147,1736697061638,-1223.14,0.00010621,2]
[348644148,1736697061647,-500.0,0.00010621,2]
[348644149,1736697061658,-2536.94,0.00010621,2]
[348644150,1736697061669,-508.96,0.00010621,2]
[348644151,1736697061680,-8763.14,0.00010621,2]
[348644152,1736697061691,-2810.61,0.00010621,2]
[348644153,1736697061828,-2693.5,0.00010621,2]
[348644154,1736697061837,-948.79,0.00010621,2]
[348644155,1736697061847,-500.0,0.00010621,2]
[348644156,1736697061856,-500.0,0.00010621,2]
[348644157,1736697061869,-1322.63,0.00010621,2]
[348644158,1736697061879,-505.41,0.00010621,2]
[348644159,1736697061888,-2001.07,0.00010621,2]
[348644160,1736697061898,-2517.71,0.00010621,2]
[348644161,1736697061907,-500.0,0.00010621,2]
[348644162,1736697061917,-500.0,0.00010621,2]
[348644163,1736697061926,-2409.15,0.00010621,2]
[348644164,1736697061935,-218.29873743,0.00010621,2]
[348644165,1736697061945,-1313.54,0.00010621,2]
[348644166,1736697061954,-2545.11,0.00010621,2]
[348644167,1736697061963,-720.83,0.00010621,2]
[348644168,1736697061973,-1463.12,0.00010621,2]
[348644169,1736697061984,-633.45,0.00010621,2]
[348644170,1736697061994,-3650.22,0.00010621,2]
[348644171,1736697062005,-2221.48,0.00010621,2]
[348644172,1736697062014,-500.0,0.00010621,2]
[348644173,1736697062023,-905.13,0.00010621,2]
[348644174,1736697062033,-500.0,0.00010621,2]
[348644175,1736697062042,-1406.9,0.00010621,2]
[348644176,1736697062051,-4088.45,0.00010621,2]
[348644177,1736697062060,-2387.93,0.00010621,2]
[348644178,1736697062071,-500.0,0.00010621,2]
[348644179,1736697062080,-3256.32,0.00010621,2]
[348644180,1736697062090,-672.97,0.00010621,2]
[348644181,1736697062100,-567.47,0.00010621,2]
[348644182,1736697062110,-785.13,0.00010621,2]
[348644183,1736697062122,-500.0,0.00010621,2]
[348644184,1736697062133,-1201.01,0.00010621,2]
[348644185,1736697062143,-500.0,0.00010621,2]
[348644186,1736697062153,-1852.27,0.00010621,2]
[348644187,1736697062163,-500.0,0.00010621,2]
[348644188,1736697062172,-785.24,0.00010621,2]
[348644189,1736697062182,-500.0,0.00010621,2]
[348644190,1736697062191,-1285.04,0.00010621,2]
[348644191,1736697062201,-603.94,0.00010621,2]
[348644192,1736697062210,-150.0,0.00010658,2]
[348644193,1736697062219,-300.0,0.00010658,2]
[348644194,1736697062229,-150.0,0.00010658,2]
[348644195,1736697062238,-150.0,0.00010658,2]
[348644196,1736697062247,-874.02,0.00010658,2]
[348644197,1736697062257,-388.06,0.00010658,2]
[348644198,1736697062266,-150.0,0.00010658,2]
[348644199,1736697062275,-1942.75,0.00010658,2]
[348644200,1736697062284,-150.0,0.00010658,2]
[348644201,1736697062293,-150.0,0.00010658,2]
[348644202,1736697062303,-980.06,0.00010658,2]
[348644203,1736697062312,-150.0,0.00010658,2]
[348644204,1736697062323,-150.0,0.00010658,2]
[348644205,1736697062332,-980.06,0.00010658,2]
[348644206,1736697062342,-172.99,0.00010658,2]
[348644207,1736697062351,-150.0,0.00010658,2]
[348644208,1736697062360,-980.06,0.00010658,2]
[348644209,1736697062371,-150.0,0.00010658,2]
[348644210,1736697062380,-188.56,0.00010658,2]
[348644211,1736697062389,-437.12,0.00010658,2]
[348644212,1736697062398,-150.0,0.00010658,2]
[348644213,1736697062408,-150.0,0.00010658,2]
[348644214,1736697062417,-980.06,0.00010658,2]
[348644215,1736697062427,-1328.14,0.00010658,2]
[348644216,1736697062436,-150.0,0.00010658,2]
[348644217,1736697062446,-250.03,0.00010658,2]
[348644218,1736697062455,-2707.36070245,0.00010669,2]
[348644219,1736697062466,-255.0,0.00010669,2]
[348644220,1736697062476,-300.0,0.00010669,2]
[348644221,1736697062485,-500.0,0.00010684,2]
[348644222,1736697062495,-500.0,0.00010684,2]
[348644223,1736697062504,-500.0,0.00010684,2]
[348644224,1736697062514,-607.7,0.00010684,2]
[348644225,1736697062523,-500.0,0.00010684,2]
[348644226,1736697062532,-500.0,0.00010684,2]
[348644227,1736697062542,-500.0,0.00010684,2]
[348644228,1736697062551,-500.0,0.00010684,2]
[348644229,1736697062561,-500.0,0.00010684,2]
[348644230,1736697062570,-500.0,0.00010684,2]
[348644231,1736697062580,-500.0,0.00010684,2]
[348644232,1736697062590,-582.0692257,0.00010684,2]
[348644233,1736697062599,-897.41,0.00010684,2]
[348644234,1736697062608,-500.0,0.00010684,2]
[348644235,1736697062618,-500.0,0.00010684,2]
[348644236,1736697062627,-651.1,0.00010684,2]
[348644237,1736697062636,-500.0,0.00010684,2]
[348644238,1736697062646,-366.77276196,0.00010684,2]
[348644239,1736697062655,-500.0,0.00010684,2]
[348644240,1736697062664,-573.91,0.00010684,2]
[348644241,1736697062674,-500.0,0.00010684,2]
[348644242,1736697062683,-500.0,0.00010684,2]
[348644243,1736697062692,-500.0,0.00010684,2]
[348644244,1736697062701,-500.0,0.00010684,2]
[348644245,1736697062711,-500.0,0.00010684,2]
[348644246,1736697062720,-500.0,0.00010684,2]
[348644247,1736697062729,-500.0,0.00010684,2]
[348644248,1736697062738,-500.0,0.00010684,2]
[348644249,1736697062747,-345.06127117,0.00010684,2]
[348644250,1736697062756,-353.24201192,0.00010684,2]
[348644251,1736697062765,-505.92600863,0.00010684,2]
[348644252,1736697062774,-586.07070144,0.00010684,2]
[348644253,1736697062783,-500.0,0.00010684,2]
[348644254,1736697062792,-500.0,0.00010684,2]
[348644255,1736697062802,-500.0,0.00010684,2]
[348644256,1736697062811,-500.0,0.00010684,2]
[348644257,1736697062822,-708.77,0.00010684,2]
[348644258,1736697062831,-622.73,0.00010684,2]
[348644259,1736697062840,-500.0,0.00010684,2]
[348644260,1736697062849,-677.81,0.00010684,2]
[348644261,1736697062859,-500.0,0.00010684,2]
[348644262,1736697062873,-600.78,0.00010684,2]
[348644263,1736697062882,-500.0,0.00010684,2]
[348644264,1736697062891,-500.0,0.00010684,2]
[348644265,1736697062900,-500.0,0.00010684,2]
[348644266,1736697062910,-500.0,0.00010684,2]
[348644267,1736697062919,-500.0,0.00010684,2]
[348644268,1736697062928,-508.11,0.00010684,2]
[348644269,1736697062938,-500.0,0.00010684,2]
[348644270,1736697062947,-500.0,0.00010684,2]
[348644271,1736697062957,-500.0,0.00010684,2]
[348644272,1736697062966,-580.8,0.00010684,2]
[348644273,1736697062975,-500.0,0.00010684,2]
[348644274,1736697062985,-605.63,0.00010684,2]
[348644275,1736697062995,-253.35853558,0.00010684,2]
[348644276,1736697063004,-500.0,0.00010684,2]
[348644277,1736697063014,-611.43,0.00010684,2]
[348644278,1736697063023,-573.28,0.00010684,2]
[348644279,1736697063032,-807.75,0.00010684,2]
[348644280,1736697063042,-500.0,0.00010684,2]
[348644281,1736697063051,-500.0,0.00010684,2]
[348644282,1736697063061,-241.74619702,0.00010684,2]
[348644283,1736697063071,-885.24,0.00010684,2]
[348644284,1736697063081,-677.43,0.00010684,2]
[348644285,1736697063091,-538.14,0.00010684,2]
[348644286,1736697063100,-683.1,0.00010684,2]
[348644287,1736697063109,-582.99,0.00010684,2]
[348644288,1736697063119,-500.0,0.00010684,2]
[348644289,1736697063129,-500.0,0.00010684,2]
[348644290,1736697063139,-732.47,0.00010684,2]